bitfinex-derivatives/quotes_SOLF0:USTF0_20260118
["timestamp","ask_amount","ask_price","bid_price","bid_amount"]
[1768756860506,1.7782434,142.04,141.98,6.3408]
[1768756860704,1.7782434,142.04,142.01,0.04927045]
[1768756860910,1.77817507,142.03,141.98,6.3408]
[1768756861605,0.21411662,142.07,141.96,100.43047507]
[1768756861798,1.77817507,142.04,141.96,100.43047507]
[1768756862206,1.77817507,142.04,142.0,0.04983788]
[1768756862410,1.77817507,142.04,142.01,3.37416914]
[1768756862703,1.77817507,142.04,142.0,0.04983788]
[1768756864611,1.77817507,142.04,142.0,3.42400702]
[1768756869815,5.07208815,142.06,142.0,3.42400702]
[1768756874817,3.29391308,142.06,142.0,3.42400702]
[1768756875113,5.07208815,142.06,142.0,3.42400702]
[1768756876319,3.29391308,142.06,142.0,3.42400702]
[1768756876615,5.07208815,142.06,142.0,3.42400702]
[1768756895429,3.29391308,142.06,142.0,3.42400702]
[1768756904930,6.12677316,142.07,142.01,6.6646732]
[1768756905131,5.32429463,142.06,142.02,6.6646732]
[1768756905332,6.12677316,142.07,142.03,7.32e-05]
[1768756905532,5.32434704,142.06,142.0,3.37416914]
[1768756905734,6.12677316,142.07,142.0,3.37416914]
[1768756905933,5.32431975,142.06,142.02,0.05387445]
[1768756906125,6.12677316,142.07,142.02,0.05387445]
[1768756906327,5.3243334,142.06,142.02,0.05387445]
[1768756906630,6.12677316,142.07,142.02,0.05387445]
[1768756906835,8.90210389,142.06,142.02,0.05387445]
[1768756907134,3.57706691,142.06,142.02,0.05387445]
[1768756910140,5.32634059,142.05,142.02,0.05387445]
[1768756910336,3.57706691,142.06,142.02,0.05387445]
[1768756910633,5.32636371,142.05,142.02,0.05387445]
[1768756910835,3.57706691,142.06,142.02,0.05387445]
[1768756911033,5.32636371,142.05,142.02,0.05387445]
[1768756911233,3.57706691,142.06,142.02,0.05387445]
[1768756911435,5.32647219,142.05,142.02,0.05387445]
[1768756911640,3.57706691,142.06,142.02,0.05387445]
[1768756911841,5.32745029,142.05,142.02,0.05387445]
[1768756912041,3.57706691,142.06,142.02,0.05387445]
[1768756912339,5.32745028,142.05,142.02,0.05387445]
[1768756912533,3.57706691,142.06,142.02,0.05387445]
[1768756912733,5.32757111,142.05,142.02,0.05387445]
[1768756912939,3.57706691,142.06,142.02,0.05387445]
[1768756913238,5.32757114,142.05,142.02,0.05387445]
[1768756913435,9.91466691,142.06,142.02,0.05387445]
[1768756913736,5.32770351,142.05,142.02,0.05387445]
[1768756914035,9.91466691,142.06,142.02,0.05387445]
[1768756914235,5.32770351,142.05,142.02,0.05387445]
[1768756914440,9.91466691,142.06,142.02,0.05387445]
[1768756914640,5.32785816,142.05,142.02,0.05387445]
[1768756914836,9.91466691,142.06,142.02,0.05387445]
[1768756915040,5.32785816,142.05,142.02,0.05387445]
[1768756915242,9.91466691,142.06,142.02,0.05387445]
[1768756915431,5.32803807,142.05,142.02,0.05387445]
[1768756915635,9.91466691,142.06,142.02,0.05387445]
[1768756915835,5.32803807,142.05,142.02,0.05387445]
[1768756916036,9.91466691,142.06,142.02,0.05387445]
[1768756916243,5.32803807,142.05,142.02,0.05387445]
[1768756916431,9.91466691,142.06,142.02,0.05387445]
[1768756916635,5.32804634,142.05,142.02,0.05387445]
[1768756916845,9.91466691,142.06,142.02,0.05387445]
[1768756917042,5.32804634,142.05,142.02,0.05387445]
[1768756917244,9.91466691,142.06,142.02,0.05387445]
[1768756917543,5.32805486,142.05,142.02,0.05387445]
[1768756917744,9.91466691,142.06,142.02,0.05387445]
[1768756917948,5.32805486,142.05,142.02,0.05387445]
[1768756918146,9.91466691,142.06,142.02,0.05387445]
[1768756918347,5.32806363,142.05,142.02,0.05387445]
[1768756918546,9.91466691,142.06,142.02,0.05387445]
[1768756918747,5.32806363,142.05,142.02,0.05387445]
[1768756918948,9.91466691,142.06,142.02,0.05387445]
[1768756919246,5.32806363,142.05,142.02,0.05387445]
[1768756919436,9.91466691,142.06,142.02,0.05387445]
[1768756919636,5.32807266,142.05,142.02,0.05387445]
[1768756919843,9.91466691,142.06,142.02,0.05387445]
[1768756920043,5.32807266,142.05,142.02,0.05387445]
[1768756920246,9.91466691,142.06,142.02,0.05387445]
[1768756920448,5.32806835,142.05,142.02,0.05387445]
[1768756920646,5.53141246,142.08,142.02,3.84596601]
[1768756920838,5.32881448,142.07,142.02,3.84596601]
[1768756921042,3.75323739,142.08,142.02,3.84596601]
[1768756921237,5.32883058,142.07,142.02,3.84596601]
[1768756921442,3.75323739,142.08,142.02,3.84596601]
[1768756922748,197.28273451,142.1,142.03,3.79209156]
[1768756923053,195.50561706,142.1,142.05,3.79209156]
[1768756923647,195.50561706,142.1,142.06,0.04731312]
[1768756925452,0.04763617,142.09,142.06,0.04731312]
[1768756929353,5.53035484,142.08,142.01,3.79209156]
[1768756930651,5.53035484,142.08,142.03,0.04635371]
[1768756940876,3.75323739,142.07,142.03,0.04635371]
[1768756946279,1.77711745,142.08,142.03,0.04635371]
[1768756948280,2.8447242,142.08,142.03,0.04635371]
[1768756953183,2.8447242,142.08,142.03,3.7395625]
[1768756955690,193.52949712,142.1,142.04,3.69320879]
[1768756955984,194.72276212,142.1,142.04,3.69320879]
[1768756956884,194.72276212,142.1,142.04,10.03150879]
[1768756958586,1.26328264,142.09,142.04,6.3383]
[1768756958786,3.04040009,142.09,142.04,6.3383]
[1768756959187,191.75237967,142.1,142.04,6.3383]
[1768756959379,1.77711745,142.09,142.04,6.3383]
[1768756959579,1.77711745,142.09,142.03,0.04635371]
[1768756960288,1.77711745,142.09,142.03,6.38515371]
[1768756961189,1.83127869,142.09,142.03,6.38515371]
[1768756962094,0.05416124,142.08,142.03,6.38515371]
[1768756962390,0.05416124,142.08,142.03,0.04635371]
[1768756969196,1.77711745,142.09,142.03,0.04635371]
[1768756971295,1.95402848,142.09,142.03,0.04635371]
[1768756976004,0.25509072,142.08,142.03,0.04635371]
[1768756979207,1.77711745,142.09,142.03,0.04635371]
[1768756981208,1.87037046,142.09,142.03,0.04635371]
[1768756981707,0.09325301,142.08,142.03,0.04635371]
[1768756989215,1.77682346,142.09,142.03,0.04635371]
[1768756989418,198.08817967,142.1,142.03,0.04635371]
[1768756989608,5.32294625,142.09,142.03,0.04635371]
[1768756989808,199.86500313,142.1,142.03,0.04635371]
[1768756990012,5.32281977,142.09,142.03,0.04635371]
[1768756990213,199.86500313,142.1,142.03,0.04635371]
[1768756990516,5.32299533,142.09,142.03,0.04635371]
[1768756990717,198.08817967,142.1,142.03,0.04635371]
[1768756990718,199.86500313,142.1,142.03,0.04635371]
[1768756990917,5.32299533,142.09,142.03,0.04635371]
[1768756991120,199.86500313,142.1,142.03,0.04635371]
[1768756991421,0.14588096,142.08,142.03,0.04635371]
[1768756999231,199.86500313,142.1,142.03,0.04635371]
[1768756999529,5.32304442,142.09,142.03,0.04635371]
[1768756999731,199.86500313,142.1,142.03,0.04635371]
[1768756999929,5.32304442,142.09,142.03,0.04635371]
[1768757000130,199.86500313,142.1,142.03,0.04635371]
[1768757000330,5.32304442,142.09,142.03,0.04635371]
[1768757000531,199.86500313,142.1,142.03,0.04635371]
[1768757000731,5.32324749,142.09,142.03,0.04635371]
[1768757000932,199.86500313,142.1,142.03,0.04635371]
[1768757001132,5.32324749,142.09,142.03,0.04635371]
[1768757001331,0.13216645,142.08,142.03,0.04635371]
[1768757004822,1.90898991,142.08,142.03,0.04635371]
[1768757007135,0.13216645,142.08,142.03,0.04635371]
[1768757007335,1.90898991,142.08,142.03,0.04635371]
[1768757009238,198.08817967,142.1,142.03,0.04635371]
[1768757009437,1.77682346,142.08,142.03,0.04635371]
[1768757011237,1.90965751,142.08,142.03,0.04635371]
[1768757014540,0.13283405,142.08,142.03,0.04635371]
[1768757014740,1.90965751,142.08,142.03,0.04635371]
[1768757015542,1.90965751,142.08,142.03,4.28014611]
[1768757016639,0.13283405,142.08,142.03,4.28014611]
[1768757019345,1.77682346,142.09,142.03,4.28014611]
[1768757019839,191.19561148,142.1,142.03,4.28014611]
[1768757020046,1.77682346,142.08,142.03,0.04635371]
[1768757020543,1.77682346,142.06,141.99,4.24151708]
[1768757021540,1.89506726,142.06,141.99,4.24151708]
[1768757021736,1.89506726,142.04,141.97,4.24151708]
[1768757022134,0.1182438,142.03,141.97,4.24151708]
[1768757022338,0.0451581,142.02,141.97,4.24151708]
[1768757024039,1.9608841,142.02,141.97,4.24151708]
[1768757028046,0.0451581,142.02,141.97,4.24151708]
[1768757028241,0.16210982,142.04,141.99,4.24151708]
[1768757029360,1.77682346,142.06,141.99,4.24151708]
[1768757029753,6.3374,142.07,142.0,4.24151708]
[1768757029946,1.77682346,142.06,142.0,4.24151708]
[1768757030145,1.77682346,142.06,142.01,0.04821513]
[1768757031951,6.3374,142.07,142.01,4.28973221]
[1768757032152,1.77682346,142.08,142.02,4.24151708]
[1768757033154,1.77682346,142.08,142.04,0.04726309]
[1768757034951,6.3365,142.09,142.04,0.04726309]
[1768757035457,217.21475408,142.1,142.04,0.04726309]
[1768757036058,217.21475408,142.1,142.04,4.50092704]
[1768757039065,293.6448,142.13,142.04,4.50092704]
[1768757039373,0.02111449,142.08,142.04,0.04726309]
[1768757039564,0.02111449,142.08,142.02,4.45366395]
[1768757039956,0.02111449,142.08,142.05,0.05398814]
[1768757040559,0.02111449,142.08,142.01,4.45366395]
[1768757040963,0.06555061,142.08,142.01,4.45366395]
[1768757041867,0.06555061,142.08,142.01,10.79346395]
[1768757042559,1.84237407,142.08,142.01,10.79346395]
[1768757044261,1.84237407,142.08,142.02,4.45366395]
[1768757044956,1.84268351,142.08,142.04,0.05026485]
[1768757047060,0.04443612,142.08,142.04,0.05026485]
[1768757047258,0.04443612,142.08,142.04,4.5039288]
[1768757049066,0.03185577,142.09,142.04,4.5039288]
[1768757052769,1.7771329,142.08,142.04,0.05026485]
[1768757052972,1.8177052,142.08,142.04,0.05026485]
[1768757060576,0.0405723,142.08,142.04,0.05026485]
[1768757060772,1.8283737,142.1,142.04,0.05026485]
[1768757060968,0.0512408,142.09,142.04,0.05026485]
[1768757061369,0.05081593,142.08,142.04,0.05026485]
[1768757065380,0.11159254,142.08,142.04,0.05026485]
[1768757076398,1.7771329,142.1,142.04,0.05026485]
[1768757076601,5.33678561,142.09,142.04,0.05026485]
[1768757076800,1.7771329,142.1,142.04,0.05026485]
[1768757077099,5.33678561,142.09,142.04,0.05026485]
[1768757077299,1.7771329,142.1,142.04,0.05026485]
[1768757077488,5.33696327,142.09,142.04,0.05026485]
[1768757077690,1.7771329,142.1,142.04,0.05026485]
[1768757077892,5.33696327,142.09,142.04,0.05026485]
[1768757078100,1.7771329,142.1,142.04,0.05026485]
[1768757078298,5.33696327,142.09,142.04,0.05026485]
[1768757078506,1.7771329,142.1,142.04,0.05026485]
[1768757078799,5.33713719,142.09,142.04,0.05026485]
[1768757078994,1.7771329,142.1,142.04,0.05026485]
[1768757079194,5.33713719,142.09,142.04,0.05026485]
[1768757079398,1.7771329,142.1,142.04,0.05026485]
[1768757079591,5.33733414,142.09,142.04,0.05026485]
[1768757079792,1.7771329,142.1,142.04,0.05026485]
[1768757079993,5.3418928,142.09,142.04,0.05026485]
[1768757080193,1.7771329,142.1,142.04,0.05026485]
[1768757080402,5.34161154,142.09,142.04,0.05026485]
[1768757080702,1.7771329,142.1,142.04,0.05026485]
[1768757080901,5.3418616,142.09,142.04,0.05026485]
[1768757081102,1.7771329,142.1,142.04,0.05026485]
[1768757081301,5.3418616,142.09,142.04,0.05026485]
[1768757081501,1.7771329,142.1,142.04,0.05026485]
[1768757081703,5.34188202,142.09,142.04,0.05026485]
[1768757082002,1.7771329,142.1,142.04,0.05026485]
[1768757082201,5.34177839,142.09,142.04,0.05026485]
[1768757082402,1.7771329,142.1,142.04,0.05026485]
[1768757082604,5.34170457,142.09,142.04,0.05026485]
[1768757082904,1.7771329,142.1,142.04,0.05026485]
[1768757083206,5.34170457,142.09,142.04,0.05026485]
[1768757083396,1.7771329,142.1,142.04,0.05026485]
[1768757083598,5.34181508,142.09,142.04,0.05026485]
[1768757083903,1.7771329,142.1,142.04,0.05026485]
[1768757084207,5.34222691,142.09,142.04,0.05026485]
[1768757084405,1.7771329,142.1,142.04,0.05026485]
[1768757084710,5.34215691,142.09,142.04,0.05026485]
[1768757084905,1.7771329,142.1,142.04,0.05026485]
[1768757085099,5.34225437,142.09,142.04,0.05026485]
[1768757085300,0.02074512,142.09,142.04,0.05026485]
[1768757094208,1.7771329,142.1,142.04,0.05026485]
[1768757100921,1.7771329,142.11,142.04,6.38866485]
[1768757101111,1.7771329,142.12,142.05,4.23642537]
[1768757101312,5.34298319,142.11,142.05,4.23642537]
[1768757101513,1.7771329,142.13,142.06,4.23642537]
[1768757101715,5.34255849,142.12,142.06,4.23642537]
[1768757102015,0.06188881,142.11,142.07,6.78975858]
[1768757102222,1.7771329,142.13,142.08,6.73681962]
[1768757102413,1.7771329,142.13,142.09,6.73681962]
[1768757102614,1.7771329,142.13,142.1,6.73681962]
[1768757102809,1.7771329,142.13,142.07,0.05293896]
[1768757103016,1.7771329,142.13,142.06,10.57392537]
[1768757103423,1.7771329,142.13,142.09,0.05121721]
[1768757104713,232.73423953,142.14,142.09,0.05121721]
[1768757105220,0.02014016,142.13,142.09,0.05121721]
[1768757114122,230.95710663,142.14,142.09,0.05121721]
[1768757114329,230.95710663,142.14,142.09,4.28764258]
[1768757115828,230.98541799,142.14,142.09,4.28764258]
[1768757121725,230.95710663,142.14,142.09,4.28764258]
[1768757121929,266.14,142.15,142.1,10.57262537]
[1768757130636,266.17882944,142.15,142.1,10.57262537]
[1768757145750,267.95467677,142.15,142.1,10.57262537]
[1768757146155,266.17882944,142.15,142.1,10.57262537]
[1768757146455,267.95467677,142.15,142.1,10.57262537]
[1768757147052,0.04784083,142.14,142.09,0.05121721]
[1768757147247,1.8242498,142.13,142.09,0.05121721]
[1768757151157,0.05063236,142.12,142.09,0.05121721]
[1768757153858,1.83162704,142.14,142.09,0.05121721]
[1768757154351,0.05577971,142.14,142.09,0.05121721]
[1768757155559,0.05669653,142.13,142.09,0.05121721]
[1768757178582,1.7757734,142.14,142.09,0.05121721]
[1768757184583,5.30151814,142.13,142.09,0.05121721]
[1768757184786,1.7757734,142.14,142.09,0.05121721]
[1768757184988,5.30147238,142.13,142.09,0.05121721]
[1768757185187,1.7757734,142.14,142.09,0.05121721]
[1768757185386,5.30174714,142.13,142.09,0.05121721]
[1768757185689,1.7757734,142.14,142.09,0.05121721]
[1768757185889,5.30174714,142.13,142.09,0.05121721]
[1768757186087,1.7757734,142.14,142.09,0.05121721]
[1768757186389,5.30174714,142.13,142.09,0.05121721]
[1768757186687,1.7757734,142.14,142.09,0.05121721]
[1768757186891,5.30181581,142.13,142.09,0.05121721]
[1768757187090,1.7757734,142.14,142.09,0.05121721]
[1768757187289,5.30181581,142.13,142.09,0.05121721]
[1768757187490,1.7757734,142.14,142.09,0.05121721]
[1768757187691,5.30193275,142.13,142.09,0.05121721]
[1768757187990,1.7757734,142.14,142.09,0.05121721]
[1768757188190,5.3018077,142.13,142.09,0.05121721]
[1768757188386,1.7757734,142.14,142.09,0.05121721]
[1768757188588,5.30197676,142.13,142.09,0.05121721]
[1768757188787,1.7757734,142.14,142.09,0.05121721]
[1768757200705,5.27608899,142.13,142.09,0.05121721]
[1768757200900,1.7757734,142.14,142.09,0.05121721]
[1768757201100,5.27608899,142.13,142.09,0.05121721]
[1768757201300,1.7757734,142.14,142.09,0.05121721]
[1768757201501,5.27603845,142.13,142.09,0.05121721]
[1768757201798,1.7757734,142.14,142.09,0.05121721]
[1768757202003,5.27603845,142.13,142.09,0.05121721]
[1768757202205,1.7757734,142.14,142.09,0.05121721]
[1768757202404,5.27602152,142.13,142.09,0.05121721]
[1768757202609,1.7757734,142.12,142.04,4.37910574]
[1768757202801,1.7757734,142.1,142.04,4.37910574]
[1768757204007,1.7757734,142.1,142.06,0.0473149]
[1768757208503,1.7757734,142.1,142.03,6.3393]
[1768757208706,0.04948131,142.09,142.03,6.3393]
[1768757214514,0.04948131,142.09,142.03,10.61443988]
[1768757226931,0.04948131,142.09,142.04,4.27513988]
[1768757227134,0.04948131,142.09,142.04,6.05091328]
[1768757230835,0.04948131,142.09,142.04,4.27513988]
[1768757245755,0.04948131,142.09,142.04,10.61413988]
[1768757245955,0.04948131,142.09,142.05,4.18976924]
[1768757251161,6.3361,142.11,142.05,4.18976924]
[1768757251358,5.28751712,142.1,142.06,4.24255654]
[1768757251564,6.3361,142.11,142.06,4.24255654]
[1768757251765,5.28751712,142.1,142.06,4.24255654]
[1768757251956,6.3361,142.11,142.06,4.24255654]
[1768757252156,5.28751712,142.1,142.06,4.24255654]
[1768757252360,6.3361,142.11,142.06,4.24255654]
[1768757252557,5.28823744,142.1,142.06,4.24255654]
[1768757252764,6.3361,142.11,142.06,4.24255654]
[1768757252966,5.28825978,142.1,142.06,4.24255654]
[1768757253264,6.3361,142.11,142.06,4.24255654]
[1768757253465,5.28820775,142.1,142.06,4.24255654]
[1768757253666,220.56062776,142.13,142.06,4.24255654]
[1768757253866,5.28829533,142.12,142.06,4.24255654]
[1768757254067,5.28829533,142.11,142.06,4.24255654]
[1768757254266,5.28829533,142.1,142.06,4.24255654]
[1768757254467,220.56062776,142.13,142.06,4.24255654]
[1768757254672,5.2877695,142.12,142.06,4.24255654]
[1768757254870,5.2877695,142.11,142.06,4.24255654]
[1768757255169,5.2877695,142.1,142.06,4.24255654]
[1768757255371,6.3355,142.12,142.06,4.24255654]
[1768757255571,5.28733883,142.11,142.06,4.24255654]
[1768757255772,5.28733883,142.1,142.06,4.24255654]
[1768757255962,6.3355,142.12,142.06,4.24255654]
[1768757256163,5.28734105,142.11,142.06,4.24255654]
[1768757256367,5.28734105,142.1,142.06,4.24255654]
[1768757256677,6.3355,142.12,142.06,4.24255654]
[1768757256974,5.28697034,142.11,142.06,4.24255654]
[1768757257271,5.28697034,142.1,142.06,4.24255654]
[1768757257476,6.3355,142.12,142.06,4.24255654]
[1768757257676,5.28663141,142.11,142.06,4.24255654]
[1768757257875,5.28663141,142.1,142.06,4.24255654]
[1768757258078,6.3355,142.12,142.06,4.24255654]
[1768757258280,5.28641938,142.11,142.06,4.24255654]
[1768757258576,5.28641938,142.1,142.06,4.24255654]
[1768757258765,6.3355,142.12,142.06,4.24255654]
[1768757258969,5.28639977,142.11,142.06,4.24255654]
[1768757259171,5.28639977,142.1,142.06,4.24255654]
[1768757259371,6.3355,142.12,142.06,4.24255654]
[1768757259572,5.28618475,142.11,142.06,4.24255654]
[1768757259777,5.28618475,142.1,142.06,4.24255654]
[1768757259975,6.3355,142.12,142.06,4.24255654]
[1768757260170,5.28488744,142.11,142.06,4.24255654]
[1768757260366,5.28488744,142.1,142.06,4.24255654]
[1768757260571,6.3355,142.12,142.06,4.24255654]
[1768757260872,5.28470146,142.11,142.06,4.24255654]
[1768757261165,5.28470146,142.1,142.06,4.24255654]
[1768757261365,6.3355,142.12,142.06,4.24255654]
[1768757261568,5.28459407,142.11,142.06,4.24255654]
[1768757261767,5.28459407,142.1,142.06,4.24255654]
[1768757261968,6.3355,142.12,142.06,4.24255654]
[1768757262171,5.28462021,142.11,142.06,4.24255654]
[1768757262375,5.2844471,142.1,142.06,4.24255654]
[1768757262575,6.3355,142.12,142.06,4.24255654]
[1768757262772,5.2844471,142.11,142.06,4.24255654]
[1768757262979,6.3355,142.12,142.06,4.24255654]
[1768757263172,5.28447324,142.11,142.06,4.24255654]
[1768757263373,6.3355,142.12,142.06,4.24255654]
[1768757263574,5.28434402,142.11,142.06,4.24255654]
[1768757263775,6.3355,142.12,142.06,4.24255654]
[1768757263974,5.28434403,142.11,142.06,4.24255654]
[1768757264271,5.28420581,142.1,142.06,4.24255654]
[1768757264472,6.3355,142.12,142.06,4.24255654]
[1768757264680,5.28420581,142.11,142.06,4.24255654]
[1768757264882,5.28420581,142.1,142.06,4.24255654]
[1768757265072,6.3355,142.12,142.06,4.24255654]
[1768757265272,5.28458351,142.11,142.06,4.24255654]
[1768757265476,5.28458351,142.1,142.06,4.24255654]
[1768757265680,6.3355,142.12,142.06,4.24255654]
[1768757265982,5.28460499,142.11,142.06,4.24255654]
[1768757266185,5.28460499,142.1,142.06,4.24255654]
[1768757266377,6.3355,142.12,142.06,4.24255654]
[1768757266676,5.28455454,142.11,142.06,4.24255654]
[1768757266876,5.28455454,142.1,142.06,4.24255654]
[1768757267074,6.3355,142.12,142.06,4.24255654]
[1768757267278,5.2845078,142.11,142.06,4.24255654]
[1768757267478,5.2845078,142.1,142.06,4.24255654]
[1768757267682,6.3355,142.12,142.06,4.24255654]
[1768757267881,5.2845078,142.11,142.06,4.24255654]
[1768757268086,5.2845078,142.1,142.06,4.24255654]
[1768757268286,6.3355,142.12,142.06,4.24255654]
[1768757268586,5.28448783,142.11,142.06,4.24255654]
[1768757268786,5.28448783,142.1,142.06,4.24255654]
[1768757268987,6.3355,142.12,142.06,4.24255654]
[1768757269187,5.28448783,142.11,142.06,4.24255654]
[1768757269388,5.28448783,142.1,142.06,4.24255654]
[1768757269588,6.3355,142.12,142.06,4.24255654]
[1768757269889,5.28447066,142.11,142.06,4.24255654]
[1768757270186,5.28447066,142.1,142.06,4.24255654]
[1768757270487,1.77642743,142.11,142.06,4.24255654]
[1768757270688,5.28446556,142.1,142.06,4.24255654]
[1768757270888,1.77642743,142.11,142.06,4.24255654]
[1768757271089,5.28446556,142.1,142.06,4.24255654]
[1768757271290,1.77642743,142.11,142.06,4.24255654]
[1768757271592,5.28446712,142.1,142.06,4.24255654]
[1768757271786,1.77642743,142.11,142.06,4.24255654]
[1768757271987,5.28446708,142.1,142.06,4.24255654]
[1768757272188,1.77642743,142.11,142.06,4.24255654]
[1768757272389,5.2844753,142.1,142.06,4.24255654]
[1768757272589,1.77642743,142.11,142.06,4.24255654]
[1768757272791,5.2844753,142.1,142.06,4.24255654]
[1768757272987,1.77642743,142.11,142.06,4.24255654]
[1768757277200,6.3355,142.12,142.06,4.24255654]
[1768757277394,5.28419226,142.11,142.06,4.24255654]
[1768757277594,8.11192743,142.12,142.06,4.24255654]
[1768757277798,7.06061969,142.11,142.06,4.24255654]
[1768757277999,1.77642743,142.11,142.06,4.24255654]
[1768757279500,8.11192743,142.12,142.06,4.24255654]
[1768757279701,5.28407574,142.11,142.06,4.24255654]
[1768757279901,8.11192743,142.12,142.06,4.24255654]
[1768757280101,5.28407574,142.11,142.06,4.24255654]
[1768757280303,8.11192743,142.12,142.06,4.24255654]
[1768757280602,220.56062776,142.13,142.07,4.3690964]
[1768757280798,5.28483252,142.12,142.07,4.3690964]
[1768757280995,220.56062776,142.13,142.07,4.3690964]
[1768757281195,5.28484845,142.12,142.07,4.3690964]
[1768757281503,211.76061468,142.13,142.07,4.3690964]
[1768757281801,267.87642743,142.15,142.09,4.3690964]
[1768757281998,5.28459047,142.14,142.09,4.3690964]
[1768757282203,267.87642743,142.15,142.09,4.3690964]
[1768757282396,5.28203879,142.14,142.09,4.3690964]
[1768757282598,267.87642743,142.15,142.1,0.04935834]
[1768757282901,5.28216356,142.14,142.1,0.04935834]
[1768757283095,267.87642743,142.15,142.1,0.04935834]
[1768757283602,5.28008429,142.14,142.1,0.04935834]
[1768757283802,267.87642743,142.15,142.1,0.04935834]
[1768757284003,5.28031252,142.14,142.1,0.04935834]
[1768757284204,267.87642743,142.15,142.1,0.04935834]
[1768757288902,0.04662898,142.14,142.1,0.04935834]
[1768757290907,1.82231671,142.14,142.1,0.04935834]
[1768757306510,0.04662898,142.14,142.1,0.04935834]
[1768757306709,1.82231671,142.14,142.1,0.04935834]
[1768757307011,0.04662898,142.14,142.1,0.04935834]
[1768757307209,1.82231671,142.14,142.1,0.04935834]
[1768757309712,1.82231671,142.14,142.1,6.38565834]
[1768757318532,0.04662898,142.14,142.1,0.04935834]
[1768757318832,1.82231671,142.14,142.1,0.04935834]
[1768757322934,1.82231671,142.14,142.1,6.38565834]
[1768757328540,5.28815598,142.13,142.1,6.38565834]
[1768757328733,1.82231671,142.14,142.1,6.38565834]
[1768757333942,1.82231671,142.14,142.1,0.04935834]
[1768757337543,1.82231671,142.14,142.1,4.00510049]
[1768757341747,0.04662898,142.14,142.1,4.00510049]
[1768757352358,267.8755676,142.15,142.1,4.00510049]
[1768757352655,5.26679702,142.14,142.1,4.00510049]
[1768757352851,267.8755676,142.15,142.1,4.00510049]
[1768757353047,5.26678117,142.14,142.1,4.00510049]
[1768757353255,267.8755676,142.15,142.1,4.00510049]
[1768757353455,5.26640254,142.14,142.1,4.00510049]
[1768757353651,267.8755676,142.15,142.1,4.00510049]
[1768757353850,5.26638297,142.14,142.1,4.00510049]
[1768757354050,267.8755676,142.15,142.1,4.00510049]
[1768757360161,5.26502706,142.14,142.1,4.00510049]
[1768757360461,267.8755676,142.15,142.1,4.00510049]
[1768757360761,5.26500596,142.14,142.1,4.00510049]
[1768757360960,267.8755676,142.15,142.1,4.00510049]
[1768757361161,5.26500596,142.14,142.1,4.00510049]
[1768757361362,267.8755676,142.15,142.1,4.00510049]
[1768757361561,5.26499386,142.14,142.1,4.00510049]
[1768757361860,267.8755676,142.15,142.1,4.00510049]
[1768757362063,5.26499385,142.14,142.1,4.00510049]
[1768757362255,267.8755676,142.15,142.1,4.00510049]
[1768757362451,5.26496976,142.14,142.1,4.00510049]
[1768757362760,267.8755676,142.15,142.1,4.00510049]
[1768757362961,5.26496981,142.14,142.1,4.00510049]
[1768757363162,1.7755676,142.14,142.1,4.00510049]
[1768757365161,1.7755676,142.14,142.1,0.04935834]
[1768757371767,266.1,142.15,142.1,0.04935834]
[1768757371962,7.04191541,142.14,142.1,0.04935834]
[1768757372265,1.7755676,142.14,142.1,0.04935834]
[1768757384373,1.7755676,142.14,142.08,3.80920425]
[1768757384974,1.7755676,142.12,142.06,3.9287192]
[1768757385175,1.7755676,142.11,142.06,3.9287192]
[1768757386181,6.3348,142.14,142.06,10.2667192]
[1768757386377,1.7755676,142.12,142.06,10.2667192]
[1768757386579,6.3348,142.14,142.06,10.2667192]
[1768757386783,1.7755676,142.12,142.06,10.2667192]
[1768757392289,1.7755676,142.12,142.07,3.59129477]
[1768757401094,8.1103676,142.14,142.07,3.59129477]
[1768757401295,5.2632726,142.13,142.07,3.59129477]
[1768757401494,8.1103676,142.14,142.07,3.59129477]
[1768757401695,5.26321292,142.13,142.07,3.59129477]
[1768757401895,8.1103676,142.14,142.07,3.59129477]
[1768757402095,5.26321292,142.13,142.07,3.59129477]
[1768757402296,8.1103676,142.14,142.07,3.59129477]
[1768757402497,5.26322895,142.13,142.07,3.59129477]
[1768757402795,8.1103676,142.14,142.07,3.59129477]
[1768757402995,5.26325173,142.13,142.07,3.59129477]
[1768757403196,8.1103676,142.14,142.07,3.59129477]
[1768757403396,5.26328252,142.13,142.07,3.59129477]
[1768757403592,8.1103676,142.14,142.07,3.59129477]
[1768757403794,5.26328252,142.13,142.07,3.59129477]
[1768757403995,8.1103676,142.14,142.07,3.59129477]
[1768757404196,5.26323556,142.13,142.07,3.59129477]
[1768757404396,8.1103676,142.14,142.07,3.59129477]
[1768757404597,5.26396172,142.13,142.07,3.59129477]
[1768757404895,8.1103676,142.14,142.07,3.59129477]
[1768757405096,5.26503499,142.13,142.07,3.59129477]
[1768757405295,8.1103676,142.14,142.07,3.59129477]
[1768757405490,5.26561243,142.13,142.07,3.59129477]
[1768757405690,8.1103676,142.14,142.07,3.59129477]
[1768757405901,5.26632798,142.13,142.07,3.59129477]
[1768757406200,8.1103676,142.14,142.07,3.59129477]
[1768757406400,5.26630328,142.13,142.07,3.59129477]
[1768757406700,8.1103676,142.14,142.07,3.59129477]
[1768757406902,5.26630328,142.13,142.07,3.59129477]